[Event "3rd Manaus Open 2024"]
[Site "Manaus"]
[Date "2024.10.12"]
[Round "1"]
[White "Filgueiras, Nathan Felipe"]
[Black "Alvarenga, Rogerio Almeida"]
[Result "1-0"]
[ECO "B10"]
[WhiteElo "2343"]
[BlackElo "1725"]
[Annotator "RC"]
[PlyCount "97"]
[EventDate "2024.10.05"]
[EventType "swiss"]
[EventCountry "BRA"]
[SourceTitle "playchess.com"]
[Source "ChessBase"]
[SourceQuality "1"]
[TimeControl "5400+30"]

1. e4 c6 2. c4 d5 3. exd5 cxd5 4. cxd5 Nf6 5. Qa4+ Nbd7 6. Nc3 g6 7. Nf3 Bg7 8. Bc4 O-O 9. Qb3 Nb6 10. d3 Bf5 11. O-O Nfd7 12. Be3 Rc8 13. Nb5 a6 14. Nbd4 Nc5 15. Qa3 Nxc4 16. dxc4 Bd7 17. Rac1 Ne4 18. Rfe1 Nf6 19. Bd2 Re8 20. Ba5 b6 21. Bd2 a5 22. Ne5 Ng4 23. Bf4 Nxe5 24. Bxe5 Bh6 25. Rc2 Rc5 26. Qg3 Qa8 27. b3 b5 28. Qh4 Bf8 29. Nf3 f6 30. Ba1 bxc4 31. bxc4 Bf5 32. Rc3 Qc8 33. Nd4 Bd7 34. Nb3 g5 35. Qd4 Rc7 36. Rcc1 a4 37. Nd2 Qa6 38. Ne4 Rec8 39. c5 Bf5 40. d6 exd6 41. Nxf6+ Kf7 42. Qd5+ Kg6 43. g4 Bd7 44. Qg8+ Bg7 45. Qxh7+ Kf7 46. Re7+ Kxe7 47. Qxg7+ Kd8 48. Qf8+ Be8 49. Qxe8# 1-0

[Event "3rd Manaus Open 2024"]
[Site "Manaus"]
[Date "2024.10.12"]
[Round "1.1"]
[White "Silva e Costa, Alan Roberto da"]
[Black "Leitao, Rafael"]
[Result "0-1"]
[ECO "D04"]
[WhiteElo "1796"]
[BlackElo "2592"]
[Annotator "TA"]
[PlyCount "52"]
[EventDate "2024.10.05"]
[EventType "swiss"]
[EventCountry "BRA"]
[SourceTitle "playchess.com"]
[Source "ChessBase"]
[SourceQuality "1"]
[TimeControl "5400+30"]

{[%evp 9,52,0,12,-8,-26,-8,-3,-50,-25,-63,-49,-56,-69,-107,-94,-149,-142,-129,-132,-135,-118,-159,-160,-164,-168,-262,-129,-179,-187,-390,-389,-393,-424,-408,-403,-470,-441,-479,-446,-518,-535,-532,-512,-723,-700]} 1. d4 {[%emt 0:00:11]} Nf6 {[%emt 0:00:07]} 2. e3 {[%emt 0:00:24]} g6 {[%emt 0:00:17]} 3. Nf3 {[%emt 0:00:24]} Bg7 {[%emt 0:00:07]} 4. Bd3 {[%emt 0:00:08]} O-O {[%emt 0:00:11]} 5. O-O {[%emt 0:00:16]} d5 {[%emt 0:01:03][%cal Oc7c5]} 6. Re1 {[%emt 0:01:30] [#]} c5 $1 {[%emt 0:00:33]} 7. b3 {[%emt 0:00:43]} (7. h3 Nc6) 7... Nc6 {[%emt 0:09:18]} 8. c3 {[%emt 0:02:09]} (8. Bb2 $11) 8... Bg4 {[%emt 0:03:06]} (8... e5 $5 9. dxe5 Ne4 $17) 9. h3 {[%emt 0:00:33]} Bxf3 {[%emt 0:00:20]} 10. Qxf3 {[%emt 0:00:18]} e5 {[%emt 0:01:02]} 11. Bb5 {[%emt 0:03:02]} cxd4 {[%emt 0:04:07]} 12. cxd4 {[%emt 0:02:20]} ({White should play} 12. exd4 exd4 13. Bxc6 bxc6 14. cxd4) 12... Qa5 $17 {[%emt 0:10:35]} 13. Qe2 {[%emt 0:00:52]} exd4 {[%emt 0:00:54] Strongly threatening ...Ne4. Black is more active.} 14. Bxc6 {[%emt 0:01:49]} bxc6 {[%emt 0:02:41]} 15. Bd2 {[%emt 0:02:10]} Qb6 $36 {[%emt 0:01:58][%mdl 2048] Hoping for ...Rae8. Black has strong initiative.} 16. exd4 {[%emt 0:01:41]} Ne4 {[%emt 0:10:08]} 17. Be3 {[%emt 0:04:36] [#]} (17. Nc3 $142) 17... Bxd4 {[%emt 0:01:51]} (17... f5 $1 $19 {[%cal Rf5f4] and Black stays clearly on top.} 18. Rd1 f4) 18. Nd2 {[%emt 0:03:25]} (18. Na3 $17 {keeps fighting.}) 18... Bxe3 $19 {[%emt 0:00:48]} 19. Nxe4 {[%emt 0:00:21]} (19. fxe3 {is a better defense.} Rfe8 20. Rac1) 19... Bd4 {[%emt 0:00:10][%cal Od4a1]} 20. Ng3 {[%emt 0:07:12]} Bxa1 {[%emt 0:01:59]} 21. Rxa1 {[%emt 0:00:03]} Rae8 {[%emt 0:02:05]} 22. Qg4 {[%emt 0:00:47]} Re6 {[%emt 0:00:21] Black is clearly winning.} 23. Rf1 {[%emt 0:06:28]} f5 {[%emt 0:02:49]} 24. Qg5 {[%emt 0:00:57]} f4 {[%emt 0:02:10]} 25. Qg4 {[%emt 0:00:18]} Re7 {[%emt 0:02:26]} 26. Nh5 {[%emt 0:10:41]} Ref7 {[%emt 0:42:24] Weighted Error Value: White=0.64/Black=0.12 (very precise) .  Mistake:       	White=5     	Black=1      Inaccurate:     	White=4     	---        OK:         	White=4     	Black=11     Best:        	---       	Black=3} 0-1

[Event "3rd Manaus Open 2024"]
[Site "Manaus"]
[Date "2024.10.12"]
[Round "1.2"]
[White "Fier, Alexandr"]
[Black "Ordozgoite, Gabriel Bento"]
[Result "1-0"]
[ECO "B22"]
[WhiteElo "2539"]
[BlackElo "1791"]
[Annotator "RC"]
[PlyCount "39"]
[EventDate "2024.10.05"]
[EventType "swiss"]
[EventCountry "BRA"]
[SourceTitle "playchess.com"]
[Source "ChessBase"]
[SourceQuality "1"]
[TimeControl "5400+30"]

1. e4 {[%emt 0:00:03]} c5 {[%emt 0:00:29]} 2. c3 {[%emt 0:00:04]} d5 {[%emt 0:03:45]} 3. exd5 {[%emt 0:00:16]} Qxd5 {[%emt 0:00:12]} 4. d4 {[%emt 0:00:03]} Nc6 {[%emt 0:02:18]} 5. Nf3 {[%emt 0:00:05]} Bg4 {[%emt 0:02:11]} 6. Be2 {[%emt 0:00:08]} e6 {[%emt 0:01:58]} 7. h3 {[%emt 0:00:07]} Bh5 {[%emt 0:03:25]} 8. c4 {[%emt 0:00:45]} Qd7 {[%emt 0:02:32]} 9. g4 {[%emt 0:01:56]} Bg6 {[%emt 0:00:16]} 10. d5 {[%emt 0:00:02]} exd5 {[%emt 0:03:30]} 11. cxd5 {[%emt 0:00:14]} Bxb1 {[%emt 0:04:23]} 12. Rxb1 {[%emt 0:01:41]} Nb4 {[%emt 0:07:57]} 13. Ne5 {[%emt 0:00:10]} Qxd5 {[%emt 0:03:00]} 14. Bb5+ {[%emt 0:00:05]} Ke7 {[%emt 0:00:57]} 15. O-O {[%emt 0:00:07]} Qxd1 {[%emt 0:04:38]} 16. Rxd1 {[%emt 0:00:50]} a6 {[%emt 0:06:24]} 17. Bc4 {[%emt 0:02:10]} b5 {[%emt 0:10:41]} 18. Bg5+ {[%emt 0:00:28]} f6 {[%emt 0:01:10]} 19. Rd7+ {[%emt 0:00:04]} Ke8 {[%emt 0:00:09]} 20. Bf7# {[%emt 0:00:04]} 1-0

[Event "3rd Manaus Open 2024"]
[Site "Manaus"]
[Date "2024.10.12"]
[Round "1.3"]
[White "Grosselli, Marcel Robinson"]
[Black "Quintiliano, Renato R."]
[Result "0-1"]
[ECO "A01"]
[WhiteElo "1789"]
[BlackElo "2513"]
[Annotator "TA"]
[PlyCount "36"]
[EventDate "2024.10.05"]
[EventType "swiss"]
[EventCountry "BRA"]
[SourceTitle "playchess.com"]
[Source "ChessBase"]
[SourceQuality "1"]
[TimeControl "5400+30"]

{[%evp 9,36,-50,-57,-61,0,0,0,-76,-68,-92,-86,-95,-90,-505,-508,-1466,-1456,-2933,-2823,-2954,-2954,-29991,-29992,-29990,-29991,-29991,-29992,-29992,-1225]} 1. b3 {[%emt 0:00:12]} d5 {[%emt 0:01:04]} 2. e3 {[%emt 0:00:29]} e5 {[%emt 0:02:34]} 3. Bb2 {[%emt 0:00:34]} Bd6 {[%emt 0:02:21]} 4. Ne2 {[%emt 0:02:17]} c5 {[%emt 0:01:26]} 5. Ng3 {[%emt 0:02:59]} Nc6 {[%emt 0:01:02]} 6. Bb5 {[%emt 0:00:49]} a6 {[%emt 0:01:58]} (6... Nge7 $15) 7. Bxc6+ $11 {[%emt 1:26:40]} bxc6 {[%emt 0:00:05]} 8. Na3 {[%emt 0:00:00]} (8. f4 $11 {keeps the balance.}) 8... Nf6 {[%emt 0:02:24]} 9. O-O {[%emt 0:00:00]} h5 {[%emt 0:01:24]} 10. Ne2 {[%emt 0:00:00]} e4 {[%emt 0:02:08][%cal Od6h2] White must now prevent ...Bxh2+! Black is more active.} 11. d3 $2 {[%emt 0:00:00][%mdl 8192] [#] White does not recover from this.} (11. f4 $17 {is tougher.}) 11... Bxh2+ $1 $19 {[%emt 0:01:49]} 12. Kh1 {[%emt 0:00:00]} (12. Kxh2 $142 Ng4+ 13. Kg1) 12... Ng4 {[%emt 0:01:00]} 13. g3 {[%emt 0:00:00] Wards off Qh4} h4 {[%emt 0:01:01]} 14. Kg2 {[%emt 0:00:00]} hxg3 {[%emt 0:01:00]} 15. Nf4 {[%emt 0:00:00]} Qh4 {[%emt 0:01:56] Black mates.} 16. dxe4 {[%emt 0:00:00]} gxf2 {[%emt 0:01:10]} 17. Qf3 {[%emt 0:00:00]} Bxf4 {[%emt 0:01:58][%csl Gf4,Gg4,Gh8][%cal Rh4h2]} 18. Rh1 {[%emt 0:00:00]} Nxe3+ {[%emt 1:13:10] Weighted Error Value: White=1.47/Black=0.04 (flawless) .  Loses game:     	White=1     	---        Mistake:       	White=2     	Black=1      Inaccurate:     	White=1     	---        OK:         	White=1     	Black=2      Best:        	White=1     	Black=1      Strong:       	---       	Black=1} 0-1

[Event "3rd Manaus Open 2024"]
[Site "Manaus"]
[Date "2024.10.12"]
[Round "1.5"]
[White "De Brito, Alison Mendes"]
[Black "Di Berardino, Diego Rafael"]
[Result "0-1"]
[ECO "E32"]
[WhiteElo "1762"]
[BlackElo "2479"]
[Annotator "TA"]
[PlyCount "56"]
[EventDate "2024.10.05"]
[EventType "swiss"]
[EventCountry "BRA"]
[SourceTitle "playchess.com"]
[Source "ChessBase"]
[SourceQuality "1"]
[TimeControl "5400+30"]

{[%evp 13,56,0,9,0,0,-26,-19,-15,4,12,37,28,40,15,13,-83,-62,-122,-145,-146,-159,-143,-153,-157,-153,-149,-145,-136,-141,-157,-163,-160,-148,-203,-213,-231,-240,-265,-269,-269,-248,-492,-510,-725,-407]} 1. d4 {[%emt 0:00:13]} Nf6 {[%emt 0:00:10]} 2. c4 {[%emt 0:00:33]} e6 {[%emt 0:01:17]} 3. Nc3 {[%emt 0:01:30]} Bb4 {[%emt 0:00:12]} 4. Qc2 {[%emt 0:00:33]} d6 {[%emt 0:03:00]} 5. a3 {[%emt 0:02:31]} Bxc3+ {[%emt 0:00:04]} 6. Qxc3 {[%emt 0:00:20]} O-O {[%emt 0:00:25]} 7. g3 {[%emt 0:05:55]} e5 {[%emt 0:02:18]} 8. Bg2 {[%emt 0:02:38]} Re8 {[%emt 0:03:38]} 9. d5 {[%emt 0:13:02]} c6 {[%emt 0:05:46]} 10. e4 {[%emt 0:01:15] The position is equal.} cxd5 {[%emt 0:07:20]} 11. cxd5 {[%emt 0:00:49]} b6 {[%emt 0:00:36]} 12. Ne2 {[%emt 0:00:40]} Ba6 {[%emt 0:00:13]} 13. Qf3 {[%emt 0:04:40]} Nbd7 {[%emt 0:00:21]} 14. O-O {[%emt 0:00:13]} (14. b4 $11 {remains equal.}) 14... Nc5 $17 {[%emt 0:05:51]} 15. Rd1 {[%emt 0:05:16]} (15. Qe3 $15) 15... Ncxe4 {[%emt 0:02:01]} 16. Nc3 {[%emt 0:02:19]} Nxc3 {[%emt 0:00:31]} 17. Qxc3 {[%emt 0:00:28]} Rc8 {[%emt 0:00:40] Against Qc6} 18. Qe1 {[%emt 0:02:28]} Rc2 {[%emt 0:01:32]} 19. Rd2 {[%emt 0:06:55]} Rc7 {[%emt 0:03:21][%cal Bc2c7,Bc7e7,Be7e3,Be3h3][%mdl 32] Black has more active pieces.} 20. b4 {[%emt 0:01:54]} e4 {[%emt 0:06:07]} 21. Bb2 {[%emt 0:02:55]} Ng4 {[%emt 0:00:29]} 22. Bd4 {[%emt 0:06:09]} (22. Bxe4 $2 {loses.} f5 23. Bxf5 Rxe1+ $19) 22... Rce7 {[%emt 0:05:52]} 23. h3 {[%emt 0:02:45]} (23. Rc2 $17 {was necessary.}) 23... e3 $19 {[%emt 0:03:06]} 24. fxe3 {[%emt 0:00:53]} Nxe3 {[%emt 0:00:05]} 25. Bxe3 {[%emt 0:02:55]} Rxe3 {[%emt 0:00:04]} 26. Qf2 {[%emt 0:00:12]} Qg5 {[%emt 0:00:17]} 27. g4 {[%emt 0:00:21] [#]} (27. Kh2) 27... h5 {[%emt 0:01:47]} 28. gxh5 {[%emt 0:01:15]} Rxh3 {[%emt 0:00:41] Weighted Error Value: White=0.48/Black=0.04 (flawless) .  Mistake:       	White=4     	---        Inaccurate:     	White=2     	Black=1      OK:         	White=6     	Black=10     Best:        	---       	Black=1} 0-1

[Event "3rd Manaus Open 2024"]
[Site "Manaus"]
[Date "2024.10.12"]
[Round "1.6"]
[White "Santiago, Yago De Moura"]
[Black "Da Silva, Nayron Igor Tomaz"]
[Result "1-0"]
[ECO "D03"]
[WhiteElo "2460"]
[BlackElo "1759"]
[Annotator "TA"]
[PlyCount "75"]
[EventDate "2024.10.05"]
[EventType "swiss"]
[EventCountry "BRA"]
[SourceTitle "playchess.com"]
[Source "ChessBase"]
[SourceQuality "1"]
[TimeControl "5400+30"]

{[%evp 9,75,8,39,34,32,22,31,21,57,16,56,51,49,39,42,43,39,57,52,64,68,69,71,68,104,104,88,97,93,93,117,114,129,86,139,140,133,122,234,229,233,189,182,187,193,176,162,127,143,123,137,142,175,183,257,251,275,276,284,280,318,316,680,626,619,626,626,604]} 1. d4 {[%emt 0:00:06]} Nf6 {[%emt 0:00:16]} 2. Nf3 {[%emt 0:00:09]} g6 {[%emt 0:00:49]} 3. Bg5 {[%emt 0:00:09]} Bg7 {[%emt 0:00:13]} 4. Nbd2 {[%emt 0:00:09]} d5 {[%emt 0:01:04]} 5. c3 {[%emt 0:00:34]} Nc6 {[%emt 0:01:22]} 6. e3 {[%emt 0:00:47]} O-O {[%emt 0:01:08]} 7. Bb5 {[%emt 0:00:28]} Bd7 {[%emt 0:07:15]} 8. O-O {[%emt 0:00:45] White is slightly better.} a6 {[%emt 0:04:19]} 9. Be2 {[%emt 0:00:25]} Re8 {[%emt 0:01:34]} 10. h3 {[%emt 0:04:39]} e5 {[%emt 0:01:42]} 11. dxe5 {[%emt 0:01:39]} Nxe5 {[%emt 0:00:12]} 12. Nxe5 {[%emt 0:00:06]} Rxe5 {[%emt 0:00:14]} 13. Nf3 {[%emt 0:00:08]} Re8 {[%emt 0:03:20]} 14. Bxf6 {[%emt 0:00:31]} Qxf6 {[%emt 0:00:37]} 15. Qxd5 {[%emt 0:00:11]} Bc6 {[%emt 0:00:29]} 16. Qb3 {[%emt 0:01:30]} b6 {[%emt 0:02:46]} 17. Nd4 {[%emt 0:01:03]} Bb7 {[%emt 0:00:16]} 18. Bf3 {[%emt 0:00:12]} Bxf3 {[%emt 0:00:48]} 19. Nxf3 {[%emt 0:00:08]} c5 {[%emt 0:01:12]} 20. Rfd1 {[%emt 0:00:45]} Rad8 {[%emt 0:00:48]} 21. a4 {[%emt 0:01:14]} Bh6 {[%emt 0:05:13]} (21... Qc6 $142) 22. Rxd8 {[%emt 0:03:19]} Rxd8 {[%emt 1:05:53]} 23. Rd1 {[%emt 1:23:03]} Re8 {[%emt 0:00:00]} (23... Rxd1+ $16 24. Qxd1 Qe6) 24. Qc4 $18 {[%emt 0:00:00]} a5 {[%emt 0:00:00]} 25. Qd5 {[%emt 0:00:00]} Bf8 {[%emt 0:00:00]} 26. Nd2 {[%emt 0:00:00][%cal Bf3d2,Bd2c4,Bc4b6,Bb6d5][%mdl 32]} Re5 {[%emt 0:00:00]} 27. Qd7 {[%emt 0:00:00]} Re7 {[%emt 0:00:00]} 28. Qg4 {[%emt 0:00:00]} h5 {[%emt 0:00:00]} 29. Qf3 {[%emt 0:00:00]} Qe6 {[%emt 0:00:00]} 30. b3 {[%emt 0:00:00]} Bg7 {[%emt 0:00:00]} 31. Nc4 {[%emt 0:00:00]} Bxc3 {[%emt 0:00:00]} (31... Be5 $142 32. Qd5 Qxd5 33. Rxd5 Bc7) 32. Rd6 {[%emt 0:00:00][%cal Bd1d6,Bd6c6,Bc6c8][%mdl 32]} Qc8 {[%emt 0:00:00]} 33. Nxb6 {[%emt 0:00:00]} Qb8 {[%emt 0:00:00] Black is weak on the light squares} 34. Rc6 {[%emt 0:00:00] [#] Rc8+ would now be deadly.} Qe5 {[%emt 0:00:00]} 35. Nd5 {[%emt 0:00:00] Prevents Rc7} Re6 {[%emt 0:00:00]} (35... Ra7 36. Rxc5 Ba1) 36. Rc8+ {[%emt 0:00:00] White is clearly winning.} Kg7 {[%emt 0:00:00]} 37. Rc7 {[%emt 0:00:00]} Rf6 {[%emt 0:00:00]} 38. Qxf6+ {[%emt 0:00:00] Weighted Error Value: White=0.12 (very precise) /Black=0.38.  Mistake:       	---       	Black=4      Inaccurate:     	White=2     	Black=3      OK:         	White=14    	Black=12     Best:        	White=1     	---} 1-0

[Event "3rd Manaus Open 2024"]
[Site "Manaus"]
[Date "2024.10.12"]
[Round "1.7"]
[White "Pereira, Armando Scharlau"]
[Black "Flom, Gabriel"]
[Result "0-1"]
[ECO "D05"]
[WhiteElo "1756"]
[BlackElo "2460"]
[Annotator "TA"]
[PlyCount "66"]
[EventDate "2024.10.05"]
[EventType "swiss"]
[EventCountry "BRA"]
[SourceTitle "playchess.com"]
[Source "ChessBase"]
[SourceQuality "1"]
[TimeControl "5400+30"]

{[%evp 13,66,18,8,8,17,0,3,0,0,0,41,61,59,63,138,146,156,141,171,-66,-47,-56,-64,-48,-44,-91,-93,-115,-118,-110,-112,-146,-142,-135,-137,-139,-133,-134,-138,-170,-147,-210,-226,-258,-233,-318,-334,-331,-331,-334,-338,-444,-467,-441,-438]} 1. d4 {[%emt 0:00:03]} Nf6 {[%emt 0:00:12]} 2. Nf3 {[%emt 0:00:19]} c5 {[%emt 0:00:03]} 3. e3 {[%emt 0:00:43]} d5 {[%emt 0:00:35]} 4. c3 {[%emt 0:00:23]} e6 {[%emt 0:00:46]} 5. Bd3 {[%emt 0:00:21]} Nc6 {[%emt 0:00:05]} 6. O-O {[%emt 0:00:17]} Bd6 {[%emt 0:00:11]} 7. Nbd2 {[%emt 0:00:24]} O-O {[%emt 0:00:42]} 8. b3 {[%emt 0:02:52]} Re8 {[%emt 0:07:07]} 9. Bb2 {[%emt 0:01:38]} e5 {[%emt 0:00:03]} 10. dxe5 {[%emt 0:00:20] The position is equal.} Nxe5 {[%emt 0:00:03]} 11. Nxe5 {[%emt 0:00:08]} Rxe5 {[%emt 0:00:08]} 12. c4 {[%emt 0:05:02]} d4 {[%emt 0:02:20]} 13. exd4 {[%emt 0:18:55]} Rh5 {[%emt 0:00:03] [#]} (13... cxd4 $14 14. Bxd4 Bg4) 14. g3 $1 $16 {[%emt 0:00:19]} Qd7 {[%emt 0:08:40]} 15. Qf3 {[%emt 0:11:43]} Qh3 {[%emt 0:00:21][%csl Gh5][%cal Rh3h2] [#]} 16. Qg2 {[%emt 0:01:10]} ({Only move:} 16. Qh1 $1 $18) 16... Qxg2+ $15 {[%emt 0:00:04]} 17. Kxg2 {[%emt 0:00:08]} Bh3+ {[%emt 0:00:02]} 18. Kg1 {[%emt 0:00:10]} Bxf1 {[%emt 0:00:02]} 19. Nxf1 {[%emt 0:00:20]} (19. Bxf1 $15 {should be considered.} cxd4 20. Nf3) 19... cxd4 $17 {[%emt 0:00:06]} 20. Bxd4 {[%emt 0:00:53]} Be5 {[%emt 0:00:22]} 21. Bxe5 {[%emt 0:00:32]} Rxe5 {[%emt 0:00:01]} 22. Kg2 {[%emt 0:02:46]} Rd8 {[%emt 0:00:04]} 23. Rd1 {[%emt 0:01:20][%cal Od3h7] Black must now prevent Bxh7+!} g6 {[%emt 0:00:05] Black is more active.} 24. Ne3 {[%emt 0:51:44]} Re7 {[%emt 0:00:06] ...Red7 would now be deadly.} 25. Kf1 {[%emt 0:00:00]} h5 {[%emt 0:00:20]} 26. h3 {[%emt 0:00:00]} Kg7 {[%emt 0:00:18][%cal Oh5h4]} 27. Be2 {[%emt 0:00:00]} (27. h4 $17 {was called for.}) 27... Rxd1+ $19 {[%emt 0:00:07]} 28. Bxd1 {[%emt 0:00:00][%mdl 4096] Endgame. KRN-KBN} Ne4 {[%emt 0:00:07][%cal Oe4g3]} 29. Nd5 {[%emt 0:00:00]} Nd2+ {[%emt 0:00:03]} 30. Kg2 {[%emt 0:00:00]} Re1 {[%emt 0:00:01]} 31. Bc2 {[%emt 0:00:00]} Ra1 {[%emt 0:00:06]} 32. a4 {[%emt 0:00:00]} Ra2 {[%emt 0:00:31]} 33. Ne3 {[%emt 0:00:00]} Rb2 {[%emt 0:00:16] Never resign too early!   Weighted Error Value: White=0.36/Black=0.10 (very precise) .  Missed win:     	White=1     	---        Mistake:       	White=2     	Black=1      Inaccurate:     	White=3     	Black=1      OK:         	White=11    	Black=7      Best:        	White=2     	Black=5} 0-1

[Event "3rd Manaus Open 2024"]
[Site "Manaus"]
[Date "2024.10.12"]
[Round "2"]
[White "Barbosa, Celio Oliveira"]
[Black "Filgueiras, Nathan Felipe"]
[Result "0-1"]
[ECO "E09"]
[WhiteElo "1916"]
[BlackElo "2343"]
[Annotator "RC"]
[PlyCount "96"]
[EventDate "2024.10.05"]
[EventType "swiss"]
[EventCountry "BRA"]
[SourceTitle "playchess.com"]
[Source "ChessBase"]
[SourceQuality "1"]
[TimeControl "5400+30"]

1. Nf3 Nf6 2. g3 d5 3. d4 e6 4. Bg2 Be7 5. O-O O-O 6. c4 c6 7. Qc2 Nbd7 8. Nbd2 b6 9. b3 Bb7 10. Bb2 c5 11. cxd5 exd5 12. Rac1 Re8 13. Rfe1 Rc8 14. Qb1 Bf8 15. e3 Qe7 16. Bf1 a6 17. Bd3 Ne4 18. Bf1 Ndf6 19. Bh3 Rcd8 20. Qc2 Bc8 21. Bxc8 Rxc8 22. Qd3 Qe6 23. Qf1 Qf5 24. Qg2 a5 25. Nxe4 Nxe4 26. Nh4 Qe6 27. f3 Nd6 28. Qd2 c4 29. Ng2 f6 30. Ba3 Ne4 31. fxe4 Bxa3 32. exd5 Bxc1 33. Rxc1 Qxd5 34. Nf4 Qe4 35. bxc4 Qxe3+ 36. Qxe3 Rxe3 37. Kf2 Ra3 38. Rc2 Kf7 39. Nd5 Rd3 40. Nxb6 Rc6 41. Ke2 Rxd4 42. Ke3 Rd1 43. c5 Ke6 44. Rc4 Re1+ 45. Kd3 Re5 46. Na4 f5 47. h4 Re1 48. g4 g6 0-1

[Event "3rd Manaus Open 2024"]
[Site "Manaus"]
[Date "2024.10.12"]
[Round "2.1"]
[White "Leitao, Rafael"]
[Black "Lira, Suan Bruno Fernandes"]
[Result "1-0"]
[ECO "B12"]
[WhiteElo "2592"]
[BlackElo "2037"]
[Annotator "TA"]
[PlyCount "61"]
[EventDate "2024.10.05"]
[EventType "swiss"]
[EventCountry "BRA"]
[SourceTitle "playchess.com"]
[Source "ChessBase"]
[SourceQuality "1"]
[TimeControl "5400+30"]

{[%evp 9,61,13,18,14,16,10,14,10,7,2,16,18,34,10,99,108,100,101,113,115,120,118,115,104,112,111,116,137,133,123,121,74,113,123,379,364,340,373,338,345,330,329,581,574,29985,29985,29988,29989,29989,29990,29994,29993,29993,29994]} 1. e4 {[%emt 0:00:59]} c6 {[%emt 0:01:38]} 2. d4 {[%emt 0:00:21]} d5 {[%emt 0:00:08]} 3. e5 {[%emt 0:00:40]} Bf5 {[%emt 0:00:07]} 4. Nd2 {[%emt 0:00:10]} e6 {[%emt 0:00:49]} 5. Nb3 {[%emt 0:00:11]} a6 {[%emt 0:01:52]} 6. Nf3 {[%emt 0:02:06]} c5 {[%emt 0:06:14]} 7. Nxc5 {[%emt 0:01:29]} Bxc5 {[%emt 0:01:02]} 8. dxc5 {[%emt 0:00:07] Die Stellung ist ausgeglichen.} Qa5+ {[%emt 0:00:10]} 9. c3 {[%emt 0:00:14]} Qxc5 {[%emt 0:00:07]} 10. Nd4 {[%emt 0:03:51]} Ne7 {[%emt 0:28:22] Schwarz hat schwache schwarze Felder} 11. Be2 {[%emt 0:18:53]} O-O {[%emt 0:04:50]} (11... Nbc6 $11) 12. g4 $1 $16 {[%emt 0:08:08]} Be4 {[%emt 0:01:32][%cal Bf5e4,Be4g6,Bg6h5][%mdl 32]} 13. f3 {[%emt 0:00:22]} Bg6 {[%emt 0:00:08]} 14. h4 $1 {[%emt 0:00:19] h5 wäre nun fies.} h5 {[%emt 0:00:56]} 15. gxh5 {[%emt 0:01:25]} Bxh5 {[%emt 0:01:28]} 16. Qd2 $1 {[%emt 0:04:21] Zielt auf Qg5 ab.} Nbc6 {[%emt 0:20:09]} 17. Qg5 {[%emt 0:26:14] Droht stark Be3.} Nxd4 {[%emt 0:00:43]} 18. cxd4 {[%emt 0:00:04]} Qb4+ {[%emt 0:00:05] [#]} 19. Bd2 $1 {[%emt 0:00:55]} Qxb2 {[%emt 0:00:18]} 20. Rd1 $40 {[%emt 0:04:29][%mdl 128] Weiss riecht Blut.} Nf5 {[%emt 0:01:25][%cal Ob2d4]} 21. Qxh5 {[%emt 0:02:15]} Ng3 $2 {[%emt 0:03:26][%mdl 8192] [#] Danach kann Schwarz die Partie nicht mehr halten.} (21... Qxa2 $2 {geht unter.} 22. Bd3 f6 23. Qg6 $18) (21... Qxd4 $16 22. Qg4 Qxe5) 22. Qg4 $1 $18 {[%emt 0:00:06]} Nxh1 {[%emt 0:00:28]} 23. Bh6 {[%emt 0:05:43][%csl Gh6][%cal Rg4g7]} g6 {[%emt 0:01:33]} ({Schwächer ist} 23... Qxa2 24. Qxg7#) 24. h5 {[%emt 0:04:58]} Qc2 {[%emt 0:01:32][%cal Oc2f5]} 25. Qh4 {[%emt 0:01:07] Und Qf6 würde nun gewinnen.} Ng3 $2 {[%emt 0:16:28]} (25... Qf5) 26. Qxg3 {[%emt 0:00:30]} Rfc8 {[%emt 0:00:37]} 27. Bd3 {[%emt 0:00:22] Weiß setzt Matt.} Qc3+ {[%emt 0:00:21]} 28. Ke2 {[%emt 0:00:11]} Qc7 {[%emt 0:06:24]} 29. Rg1 {[%emt 0:01:51]} Qa5 {[%emt 0:01:26]} 30. hxg6 {[%emt 0:00:44]} Qxa2+ {[%emt 0:00:33]} 31. Ke3 {[%emt 0:00:07] Gewichteter Fehlerwert: Weiß=0.01 (makellos) /Schwarz=0.58.  Verlustzug:     	---       	Schwarz=1     Fehler:       	---       	Schwarz=2     Ungenau:       	---       	Schwarz=2     OK:         	Weiß=4     	Schwarz=7     Bester:       	Weiß=6     	Schwarz=4     Stark:        	Weiß=5     	---} 1-0